[Event "*** Titled Tuesday Blitz"]
[Site "Chess.com"]
[Date "2020.05.12"]
[Round "3"]
[White "aa175"]
[Black "Egor_Pakhomov"]
[Result "0-1"]
[WhiteElo "2398"]
[BlackElo "2628"]
[TimeControl "180+1"]
[EndTime "10:26:59 PDT"]
[Termination "Egor_Pakhomov won on time"]

1. d4 {[%clk 0:03:00.9]} 1... d5 {[%clk 0:02:59.6]} 2. Bf4 {[%clk 0:02:57.6]}
2... e6 {[%clk 0:02:58.7]} 3. e3 {[%clk 0:02:57.8]} 3... Nf6 {[%clk 0:02:59.1]}
4. Nf3 {[%clk 0:02:57.8]} 4... Bd6 {[%clk 0:02:59.6]} 5. Nbd2 {[%clk 0:02:57.8]}
5... c5 {[%clk 0:03:00]} 6. c3 {[%clk 0:02:57.8]} 6... Bxf4 {[%clk 0:02:59.8]}
7. exf4 {[%clk 0:02:57]} 7... cxd4 {[%clk 0:03:00.1]} 8. Nxd4 {[%clk 0:02:57.9]}
8... Nc6 {[%clk 0:02:59.6]} 9. N2f3 {[%clk 0:02:57.1]} 9... O-O {[%clk
0:02:59.2]} 10. Bd3 {[%clk 0:02:57]} 10... Nxd4 {[%clk 0:02:45.8]} 11. Nxd4
{[%clk 0:02:55.9]} 11... Qd6 {[%clk 0:02:45.9]} 12. g3 {[%clk 0:02:49.7]} 12...
e5 {[%clk 0:02:37]} 13. fxe5 {[%clk 0:02:50.6]} 13... Re8 {[%clk 0:02:33.8]} 14.
f4 {[%clk 0:02:39.5]} 14... Ng4 {[%clk 0:02:18.8]} 15. O-O {[%clk 0:02:27.2]}
15... Qh6 {[%clk 0:02:16.6]} 16. Qc2 {[%clk 0:02:20.4]} 16... Ne3 {[%clk
0:02:14.3]} 17. Qd2 {[%clk 0:02:20.4]} 17... Nxf1 {[%clk 0:02:14.2]} 18. Rxf1
{[%clk 0:02:19.8]} 18... Rxe5 {[%clk 0:02:14.2]} 19. Qg2 {[%clk 0:02:04.7]}
19... Bh3 {[%clk 0:02:11.6]} 20. Qxh3 {[%clk 0:01:28.3]} 20... Qxh3 {[%clk
0:02:10.4]} 21. fxe5 {[%clk 0:01:29.2]} 21... Re8 {[%clk 0:02:09.6]} 22. Re1
{[%clk 0:01:10.5]} 22... Qh5 {[%clk 0:02:06.4]} 23. e6 {[%clk 0:01:05.9]} 23...
fxe6 {[%clk 0:02:05.4]} 24. Nxe6 {[%clk 0:00:57.4]} 24... Qg4 {[%clk 0:02:03.3]}
25. Kg2 {[%clk 0:00:32.3]} 25... Rxe6 {[%clk 0:02:01.4]} 26. h3 {[%clk
0:00:31.5]} 26... Rxe1 {[%clk 0:01:54.9]} 27. hxg4 {[%clk 0:00:31.3]} 27... Ra1
{[%clk 0:01:55]} 28. Kf3 {[%clk 0:00:01.3]} 28... Rxa2 {[%clk 0:01:54.5]} 29. b4
{[%clk 0:00:01.2]} 29... Ra3 {[%clk 0:01:53.7]} 30. Bf5 {[%clk 0:00:01]} 30...
Rxc3+ {[%clk 0:01:52.9]} 31. Kf4 {[%clk 0:00:01.2]} 31... Kf7 {[%clk 0:01:53.4]}
32. g5 {[%clk 0:00:01.1]} 32... Ke7 {[%clk 0:01:53.6]} 33. Ke5 {[%clk
0:00:01.2]} 33... g6 {[%clk 0:01:52.7]} 34. Be4 {[%clk 0:00:01.1]} 34... Rxg3
{[%clk 0:01:52.9]} 35. Bxd5 {[%clk 0:00:01.1]} 35... Rxg5+ {[%clk 0:01:52.7]}
36. Kd4 {[%clk 0:00:01.2]} 36... Rxd5+ {[%clk 0:01:52.3]} 37. Ke4 {[%clk
0:00:01.2]} 37... Rb5 {[%clk 0:01:51.1]} 38. Kd4 {[%clk 0:00:01]} 38... Rxb4+
{[%clk 0:01:50.9]} 39. Kc5 {[%clk 0:00:01.2]} 39... Rb6 {[%clk 0:01:51.4]} 40.
Kd5 {[%clk 0:00:01.2]} 40... Rc6 {[%clk 0:01:51.7]} 41. Ke5 {[%clk 0:00:01.2]}
41... g5 {[%clk 0:01:52.4]} 42. Ke4 {[%clk 0:00:01.2]} 42... h5 {[%clk
0:01:52.5]} 43. Kf5 {[%clk 0:00:01.2]} 43... Rc5+ {[%clk 0:01:52.4]} 44. Ke4
{[%clk 0:00:01.3]} 44... b6 {[%clk 0:01:53.3]} 0-1

[Event "*** Titled Tuesday Blitz"]
[Site "Chess.com"]
[Date "2020.05.12"]
[Round "3"]
[White "Gabrielian_Artur"]
[Black "amiralfio"]
[Result "1-0"]
[WhiteElo "2714"]
[BlackElo "2457"]
[TimeControl "180+1"]
[EndTime "10:27:00 PDT"]
[Termination "Gabrielian_Artur won by resignation"]

1. e4 {[%clk 0:03:00.9]} 1... c6 {[%clk 0:02:57.5]} 2. d4 {[%clk 0:02:59.7]}
2... g6 {[%clk 0:02:54.9]} 3. Nc3 {[%clk 0:02:56.7]} 3... d5 {[%clk 0:02:53.7]}
4. e5 {[%clk 0:02:51.4]} 4... Bg7 {[%clk 0:02:49.2]} 5. f4 {[%clk 0:02:51.5]}
5... Nh6 {[%clk 0:02:48.9]} 6. Nf3 {[%clk 0:02:51.4]} 6... Bg4 {[%clk
0:02:47.8]} 7. Be2 {[%clk 0:02:51.3]} 7... e6 {[%clk 0:02:47.3]} 8. O-O {[%clk
0:02:50.6]} 8... O-O {[%clk 0:02:46.5]} 9. Be3 {[%clk 0:02:48.3]} 9... Nf5
{[%clk 0:02:44.2]} 10. Bf2 {[%clk 0:02:48.2]} 10... Nd7 {[%clk 0:02:30.4]} 11.
Ng5 {[%clk 0:02:32.4]} 11... Bxe2 {[%clk 0:02:28.3]} 12. Nxe2 {[%clk 0:02:33.3]}
12... h5 {[%clk 0:01:52.2]} 13. h3 {[%clk 0:02:22.4]} 13... Bh6 {[%clk
0:01:45.6]} 14. g4 {[%clk 0:02:10.7]} 14... Ng7 {[%clk 0:01:15.5]} 15. Nf3
{[%clk 0:02:04.8]} 15... hxg4 {[%clk 0:01:13.3]} 16. hxg4 {[%clk 0:02:05]} 16...
g5 {[%clk 0:01:13.9]} 17. Kg2 {[%clk 0:01:52.3]} 17... gxf4 {[%clk 0:01:10.9]}
18. Bh4 {[%clk 0:01:42.5]} 18... f6 {[%clk 0:00:51.2]} 19. Qd3 {[%clk
0:01:39.6]} 19... Qe8 {[%clk 0:00:47.8]} 20. Rh1 {[%clk 0:01:08.2]} 20... fxe5
{[%clk 0:00:41]} 21. dxe5 {[%clk 0:01:07.2]} 21... Nc5 {[%clk 0:00:40]} 22. Qa3
{[%clk 0:00:57.6]} 22... Qg6 {[%clk 0:00:30.5]} 23. Qxc5 {[%clk 0:00:55.3]}
23... Qxg4+ {[%clk 0:00:30.3]} 24. Kf2 {[%clk 0:00:53.4]} 1-0

[Event "*** Titled Tuesday Blitz"]
[Site "Chess.com"]
[Date "2020.05.12"]
[Round "3"]
[White "pheonixking2000"]
[Black "harvsp123"]
[Result "1-0"]
[WhiteElo "2818"]
[BlackElo "2524"]
[TimeControl "180+1"]
[EndTime "10:27:01 PDT"]
[Termination "pheonixking2000 won by resignation"]

1. Nf3 {[%clk 0:03:00.9]} 1... d5 {[%clk 0:02:54.7]} 2. d4 {[%clk 0:03:00]} 2...
Nf6 {[%clk 0:02:53.8]} 3. Bf4 {[%clk 0:03:00.1]} 3... e6 {[%clk 0:02:52]} 4.
Nbd2 {[%clk 0:02:58.5]} 4... c5 {[%clk 0:02:49.9]} 5. e3 {[%clk 0:02:57.8]} 5...
Qb6 {[%clk 0:02:48.8]} 6. Rb1 {[%clk 0:02:51.7]} 6... Bd6 {[%clk 0:02:35.4]} 7.
dxc5 {[%clk 0:02:49.9]} 7... Qxc5 {[%clk 0:02:29.8]} 8. b4 {[%clk 0:02:33.7]}
8... Qc7 {[%clk 0:02:27.6]} 9. Bxd6 {[%clk 0:02:34.3]} 9... Qxd6 {[%clk
0:02:28.5]} 10. c4 {[%clk 0:02:35.2]} 10... O-O {[%clk 0:02:24.3]} 11. Bd3
{[%clk 0:02:33.7]} 11... Nc6 {[%clk 0:02:16.3]} 12. a3 {[%clk 0:02:23.3]} 12...
b6 {[%clk 0:02:03.2]} 13. O-O {[%clk 0:02:21.4]} 13... Bb7 {[%clk 0:02:02.8]}
14. Qe2 {[%clk 0:02:21.8]} 14... Ne5 {[%clk 0:01:58.2]} 15. Nxe5 {[%clk
0:02:09.9]} 15... Qxe5 {[%clk 0:01:59.1]} 16. Rfc1 {[%clk 0:01:58.4]} 16... Rac8
{[%clk 0:01:49.7]} 17. c5 {[%clk 0:01:47.8]} 17... bxc5 {[%clk 0:01:47.9]} 18.
bxc5 {[%clk 0:01:48.7]} 18... Ba8 {[%clk 0:01:40.8]} 19. Ba6 {[%clk 0:01:42.9]}
19... Rc7 {[%clk 0:01:39.6]} 20. Nf3 {[%clk 0:01:42.5]} 20... Qh5 {[%clk
0:01:22.9]} 21. Qb5 {[%clk 0:01:42.6]} 21... h6 {[%clk 0:00:52.8]} 22. Qa5
{[%clk 0:01:36]} 22... Re7 {[%clk 0:00:49.9]} 23. c6 {[%clk 0:01:35]} 23... e5
{[%clk 0:00:48.3]} 24. c7 {[%clk 0:01:33.7]} 24... e4 {[%clk 0:00:48.5]} 25.
c8=Q {[%clk 0:01:28.7]} 25... Rxc8 {[%clk 0:00:46.5]} 26. Rxc8+ {[%clk
0:01:27.8]} 26... Kh7 {[%clk 0:00:47.4]} 27. Nd4 {[%clk 0:01:20.5]} 27... Re5
{[%clk 0:00:42]} 28. Be2 {[%clk 0:01:18]} 28... Qh4 {[%clk 0:00:39.8]} 29. Rxa8
{[%clk 0:00:59.7]} 29... Rg5 {[%clk 0:00:37.9]} 30. Qc7 {[%clk 0:00:51.6]} 1-0

[Event "*** Titled Tuesday Blitz"]
[Site "Chess.com"]
[Date "2020.05.12"]
[Round "3"]
[White "Artem_Sadovsky"]
[Black "GMJustin"]
[Result "1-0"]
[WhiteElo "2538"]
[BlackElo "2338"]
[TimeControl "180+1"]
[EndTime "10:27:01 PDT"]
[Termination "Artem_Sadovsky won on time"]

1. Nf3 {[%clk 0:02:58.6]} 1... Nf6 {[%clk 0:02:52.5]} 2. g3 {[%clk 0:02:58.9]}
2... b5 {[%clk 0:02:48.7]} 3. Bg2 {[%clk 0:02:59.8]} 3... Bb7 {[%clk 0:02:48.7]}
4. O-O {[%clk 0:03:00.5]} 4... c5 {[%clk 0:02:48.3]} 5. a4 {[%clk 0:03:01.1]}
5... b4 {[%clk 0:02:41.8]} 6. d3 {[%clk 0:03:01.6]} 6... d6 {[%clk 0:02:23]} 7.
Nbd2 {[%clk 0:03:01.4]} 7... g6 {[%clk 0:02:16.9]} 8. e4 {[%clk 0:02:58.1]} 8...
Bg7 {[%clk 0:02:15.1]} 9. Nc4 {[%clk 0:02:58.5]} 9... O-O {[%clk 0:02:11.5]} 10.
e5 {[%clk 0:02:36.9]} 10... dxe5 {[%clk 0:02:05]} 11. Nfxe5 {[%clk 0:02:37.8]}
11... Bxg2 {[%clk 0:01:55.4]} 12. Kxg2 {[%clk 0:02:38.7]} 12... Qd5+ {[%clk
0:01:53.4]} 13. Qf3 {[%clk 0:02:39.2]} 13... Qxf3+ {[%clk 0:01:49.1]} 14. Nxf3
{[%clk 0:02:28.4]} 14... Nbd7 {[%clk 0:01:35.7]} 15. Re1 {[%clk 0:02:25.4]}
15... Nd5 {[%clk 0:01:31.3]} 16. a5 {[%clk 0:02:13.2]} 16... Rfe8 {[%clk
0:01:26.8]} 17. a6 {[%clk 0:02:08.1]} 17... e5 {[%clk 0:01:07.1]} 18. Ra5 {[%clk
0:02:03.8]} 18... f5 {[%clk 0:00:55.1]} 19. Nfd2 {[%clk 0:01:52.8]} 19... Re6
{[%clk 0:00:48.3]} 20. Nb3 {[%clk 0:01:52.4]} 20... Rc8 {[%clk 0:00:44.3]} 21.
Bd2 {[%clk 0:01:29.1]} 21... Rcc6 {[%clk 0:00:43.7]} 22. Rea1 {[%clk 0:01:28.1]}
22... e4 {[%clk 0:00:43.2]} 23. Rb5 {[%clk 0:01:17]} 23... exd3 {[%clk
0:00:34.8]} 24. cxd3 {[%clk 0:01:17.9]} 24... Rxa6 {[%clk 0:00:16.6]} 25. Rxa6
{[%clk 0:01:18.8]} 25... Rxa6 {[%clk 0:00:16.3]} 26. Nxc5 {[%clk 0:01:16.7]}
26... N7b6 {[%clk 0:00:02.7]} 27. Nxa6 {[%clk 0:01:09.3]} 1-0

[Event "*** Titled Tuesday Blitz"]
[Site "Chess.com"]
[Date "2020.05.12"]
[Round "3"]
[White "TokChess"]
[Black "ameetghasi100"]
[Result "0-1"]
[WhiteElo "2417"]
[BlackElo "2730"]
[TimeControl "180+1"]
[EndTime "10:27:09 PDT"]
[Termination "ameetghasi100 won by resignation"]

1. d4 {[%clk 0:03:00.9]} 1... Nf6 {[%clk 0:02:59.7]} 2. Nf3 {[%clk 0:03:00.9]}
2... g6 {[%clk 0:03:00.3]} 3. Bf4 {[%clk 0:03:00.9]} 3... Bg7 {[%clk 0:03:00.8]}
4. e3 {[%clk 0:03:01.1]} 4... O-O {[%clk 0:03:01.4]} 5. Be2 {[%clk 0:02:56.4]}
5... d6 {[%clk 0:03:02.3]} 6. O-O {[%clk 0:02:55.9]} 6... Nfd7 {[%clk
0:03:02.8]} 7. h3 {[%clk 0:02:55.3]} 7... e5 {[%clk 0:03:03.3]} 8. Bh2 {[%clk
0:02:55]} 8... Nc6 {[%clk 0:03:03]} 9. c4 {[%clk 0:02:54.5]} 9... exd4 {[%clk
0:02:42.1]} 10. exd4 {[%clk 0:02:53.8]} 10... Qf6 {[%clk 0:02:42.5]} 11. d5
{[%clk 0:02:14.4]} 11... Nd4 {[%clk 0:02:16]} 12. Nxd4 {[%clk 0:02:10.8]} 12...
Qxd4 {[%clk 0:02:16.9]} 13. Nc3 {[%clk 0:02:08.9]} 13... a6 {[%clk 0:02:13.5]}
14. Qxd4 {[%clk 0:02:06.3]} 14... Bxd4 {[%clk 0:02:12.7]} 15. Rad1 {[%clk
0:02:06.8]} 15... Bg7 {[%clk 0:02:00.5]} 16. Bd3 {[%clk 0:02:01.1]} 16... Nc5
{[%clk 0:01:59.6]} 17. Bc2 {[%clk 0:02:01.3]} 17... Bd7 {[%clk 0:01:54.2]} 18.
Ne4 {[%clk 0:01:25.9]} 18... Nxe4 {[%clk 0:01:46.1]} 19. Bxe4 {[%clk 0:01:25.7]}
19... Rfe8 {[%clk 0:01:46.4]} 20. Bd3 {[%clk 0:01:13.8]} 20... a5 {[%clk
0:01:44.3]} 21. Rd2 {[%clk 0:01:02.1]} 21... Bh6 {[%clk 0:01:37.8]} 22. Rc2
{[%clk 0:00:55.2]} 22... b6 {[%clk 0:01:37.9]} 23. Bg3 {[%clk 0:00:45.3]} 23...
Ba4 {[%clk 0:01:35.2]} 24. b3 {[%clk 0:00:33.6]} 24... Bd7 {[%clk 0:01:35.7]}
25. Rd1 {[%clk 0:00:22.6]} 25... Bg5 {[%clk 0:01:30.2]} 26. Kf1 {[%clk
0:00:20.6]} 26... a4 {[%clk 0:01:27.5]} 27. b4 {[%clk 0:00:20.6]} 27... a3
{[%clk 0:01:26.6]} 28. c5 {[%clk 0:00:18.8]} 28... Ba4 {[%clk 0:01:26.2]} 29.
cxd6 {[%clk 0:00:17.3]} 29... cxd6 {[%clk 0:01:26.1]} 30. Bxd6 {[%clk 0:00:16]}
30... Red8 {[%clk 0:01:20]} 31. Bc7 {[%clk 0:00:10]} 31... Rxd5 {[%clk
0:01:14.6]} 32. Be2 {[%clk 0:00:07.7]} 32... Rxd1+ {[%clk 0:01:13.2]} 33. Bxd1
{[%clk 0:00:08.3]} 33... Bxc2 {[%clk 0:01:13.7]} 34. Bxc2 {[%clk 0:00:08.9]}
34... Rc8 {[%clk 0:01:14.1]} 0-1

[Event "*** Titled Tuesday Blitz"]
[Site "Chess.com"]
[Date "2020.05.12"]
[Round "3"]
[White "reniite"]
[Black "MacDaddyMac"]
[Result "1/2-1/2"]
[WhiteElo "1916"]
[BlackElo "2272"]
[TimeControl "180+1"]
[EndTime "10:27:09 PDT"]
[Termination "Game drawn - insufficient material"]

1. e4 {[%clk 0:00:11.8]} 1... e5 {[%clk 0:02:55.9]} 2. d3 {[%clk 0:00:12.7]}
2... Nc6 {[%clk 0:02:55.6]} 3. g3 {[%clk 0:00:13.6]} 3... d6 {[%clk 0:02:56.5]}
4. Bg2 {[%clk 0:00:14.5]} 4... Nf6 {[%clk 0:02:55.9]} 5. Ne2 {[%clk 0:00:15.4]}
5... Be7 {[%clk 0:02:56.5]} 6. O-O {[%clk 0:00:16.3]} 6... O-O {[%clk
0:02:57.2]} 7. h3 {[%clk 0:00:17.2]} 7... Bd7 {[%clk 0:02:56.6]} 8. Kh2 {[%clk
0:00:18.1]} 8... Qc8 {[%clk 0:02:57.2]} 9. Nbc3 {[%clk 0:00:18.8]} 9... Nd4
{[%clk 0:02:57.1]} 10. Be3 {[%clk 0:00:19.3]} 10... c5 {[%clk 0:02:56.8]} 11.
Nd5 {[%clk 0:00:18.9]} 11... Nxd5 {[%clk 0:02:56.2]} 12. exd5 {[%clk 0:00:19.8]}
12... f5 {[%clk 0:02:56.8]} 13. c3 {[%clk 0:00:20.2]} 13... Nxe2 {[%clk
0:02:56.6]} 14. Qxe2 {[%clk 0:00:21.1]} 14... f4 {[%clk 0:02:57.2]} 15. Bd2
{[%clk 0:00:20.7]} 15... f3 {[%clk 0:02:57.2]} 16. Bxf3 {[%clk 0:00:21]} 16...
Bxh3 {[%clk 0:02:57.2]} 17. Bg2 {[%clk 0:00:21.9]} 17... Bxg2 {[%clk 0:02:56.5]}
18. Kxg2 {[%clk 0:00:21.9]} 18... h6 {[%clk 0:02:56]} 19. f4 {[%clk 0:00:21.4]}
19... Bf6 {[%clk 0:02:50.4]} 20. Rae1 {[%clk 0:00:20.4]} 20... exf4 {[%clk
0:02:49.4]} 21. Bxf4 {[%clk 0:00:20.2]} 21... Kh8 {[%clk 0:02:39.1]} 22. Qe6
{[%clk 0:00:20.2]} 22... Qd8 {[%clk 0:02:31.9]} 23. d4 {[%clk 0:00:18.5]} 23...
cxd4 {[%clk 0:02:31]} 24. cxd4 {[%clk 0:00:18.5]} 24... Bxd4 {[%clk 0:02:29.7]}
25. Bxd6 {[%clk 0:00:18.6]} 25... Rxf1 {[%clk 0:02:29.1]} 26. Rxf1 {[%clk
0:00:19.5]} 26... Qg5 {[%clk 0:02:25.7]} 27. Bf4 {[%clk 0:00:17.7]} 27... Qf6
{[%clk 0:02:18.6]} 28. Qxf6 {[%clk 0:00:17.5]} 28... Bxf6 {[%clk 0:02:19.5]} 29.
d6 {[%clk 0:00:18.3]} 29... Rd8 {[%clk 0:02:19.8]} 30. Rd1 {[%clk 0:00:18.9]}
30... Bxb2 {[%clk 0:02:19.6]} 31. Kf3 {[%clk 0:00:19.3]} 31... b6 {[%clk
0:02:15.5]} 32. Ke4 {[%clk 0:00:19.5]} 32... Kg8 {[%clk 0:02:15.9]} 33. Kd5
{[%clk 0:00:20]} 33... Kf7 {[%clk 0:02:14.1]} 34. Re1 {[%clk 0:00:20.5]} 34...
Ba3 {[%clk 0:02:08.1]} 35. Re7+ {[%clk 0:00:20.8]} 35... Kf8 {[%clk 0:02:06.9]}
36. Rxa7 {[%clk 0:00:20.1]} 36... Bc5 {[%clk 0:02:02.7]} 37. Ke6 {[%clk
0:00:19.8]} 37... g5 {[%clk 0:01:59.2]} 38. Be5 {[%clk 0:00:19.8]} 38... Re8+
{[%clk 0:01:59.5]} 39. Kd5 {[%clk 0:00:20.1]} 39... h5 {[%clk 0:01:55.7]} 40.
Rc7 {[%clk 0:00:19.8]} 40... h4 {[%clk 0:01:53.7]} 41. Bf6 {[%clk 0:00:20.1]}
41... Bxd6 {[%clk 0:01:51]} 42. Kxd6 {[%clk 0:00:19.9]} 42... hxg3 {[%clk
0:01:50.4]} 43. Rc3 {[%clk 0:00:20.3]} 43... g2 {[%clk 0:01:49.6]} 44. Rg3
{[%clk 0:00:20.4]} 44... Re2 {[%clk 0:01:48.9]} 45. a4 {[%clk 0:00:19.3]} 45...
Kf7 {[%clk 0:01:44.2]} 46. Bxg5 {[%clk 0:00:19.5]} 46... Ra2 {[%clk 0:01:43.7]}
47. Kc6 {[%clk 0:00:19.9]} 47... Rxa4 {[%clk 0:01:43.2]} 48. Rxg2 {[%clk
0:00:20.4]} 48... Rb4 {[%clk 0:01:42.9]} 49. Bf4 {[%clk 0:00:20.1]} 49... Rxf4
{[%clk 0:01:42.3]} 50. Kxb6 {[%clk 0:00:20.2]} 50... Rf6+ {[%clk 0:01:42.4]} 51.
Kc5 {[%clk 0:00:19.7]} 51... Rg6 {[%clk 0:01:43.3]} 52. Rxg6 {[%clk 0:00:19]}
52... Kxg6 {[%clk 0:01:44.2]} 1/2-1/2

[Event "*** Titled Tuesday Blitz"]
[Site "Chess.com"]
[Date "2020.05.12"]
[Round "3"]
[White "YaWaleriy"]
[Black "valeriocarnicelli"]
[Result "0-1"]
[WhiteElo "2232"]
[BlackElo "2531"]
[TimeControl "180+1"]
[EndTime "10:27:16 PDT"]
[Termination "valeriocarnicelli won by resignation"]

1. d4 {[%clk 0:03:00.9]} 1... d5 {[%clk 0:02:59.6]} 2. Nf3 {[%clk 0:03:00]} 2...
Nf6 {[%clk 0:02:59.5]} 3. c4 {[%clk 0:03:00.4]} 3... c6 {[%clk 0:02:59.7]} 4. e3
{[%clk 0:03:00.3]} 4... e6 {[%clk 0:02:59.7]} 5. Bd3 {[%clk 0:02:58.7]} 5...
Nbd7 {[%clk 0:02:57.8]} 6. O-O {[%clk 0:02:58.5]} 6... dxc4 {[%clk 0:02:57.6]}
7. Bxc4 {[%clk 0:02:58]} 7... b5 {[%clk 0:02:57.7]} 8. Bd3 {[%clk 0:02:58.1]}
8... Bb7 {[%clk 0:02:57.7]} 9. e4 {[%clk 0:02:57]} 9... a6 {[%clk 0:02:54.7]}
10. a4 {[%clk 0:02:56.3]} 10... Be7 {[%clk 0:02:52.6]} 11. Qe2 {[%clk
0:02:54.4]} 11... O-O {[%clk 0:02:52.3]} 12. Nbd2 {[%clk 0:02:50.9]} 12... b4
{[%clk 0:02:31.2]} 13. e5 {[%clk 0:02:50.4]} 13... Nd5 {[%clk 0:02:30.9]} 14.
Qe4 {[%clk 0:02:50.9]} 14... g6 {[%clk 0:02:28.1]} 15. Qg4 {[%clk 0:02:51]}
15... c5 {[%clk 0:02:26.9]} 16. Ne4 {[%clk 0:02:51.1]} 16... cxd4 {[%clk
0:02:25.6]} 17. Bh6 {[%clk 0:02:47]} 17... Re8 {[%clk 0:02:25.3]} 18. Rfe1
{[%clk 0:02:32]} 18... Rc8 {[%clk 0:02:20.7]} 19. Neg5 {[%clk 0:02:19]} 19...
Bf8 {[%clk 0:01:59.6]} 20. Nxf7 {[%clk 0:01:41.5]} 20... Kxf7 {[%clk 0:01:56.9]}
21. Ng5+ {[%clk 0:01:41.2]} 21... Kg8 {[%clk 0:01:56.1]} 22. Nxh7 {[%clk
0:01:38.4]} 22... Bxh6 {[%clk 0:01:50.9]} 23. Qxg6+ {[%clk 0:01:35.5]} 23... Bg7
{[%clk 0:01:51]} 24. Ng5 {[%clk 0:01:34.2]} 24... Qe7 {[%clk 0:01:30.8]} 25. Re4
{[%clk 0:00:57.7]} 25... Nc5 {[%clk 0:01:15.8]} 26. Rh4 {[%clk 0:00:54.6]} 26...
Qxg5 {[%clk 0:01:13.2]} 27. Qxg5 {[%clk 0:00:43.7]} 27... Nxd3 {[%clk 0:01:13]}
28. Qh5 {[%clk 0:00:37.8]} 28... Nxe5 {[%clk 0:01:10]} 29. Qh7+ {[%clk 0:00:33]}
29... Kf8 {[%clk 0:01:08.3]} 30. Re1 {[%clk 0:00:30.6]} 30... Rc7 {[%clk
0:00:55]} 31. Rh5 {[%clk 0:00:24.5]} 31... Nf6 {[%clk 0:00:51.4]} 0-1

[Event "*** Titled Tuesday Blitz"]
[Site "Chess.com"]
[Date "2020.05.12"]
[Round "3"]
[White "SaySpade4VIP"]
[Black "Radzio1987"]
[Result "0-1"]
[WhiteElo "2639"]
[BlackElo "2883"]
[TimeControl "180+1"]
[EndTime "10:27:18 PDT"]
[Termination "Radzio1987 won by resignation"]

1. e4 {[%clk 0:02:57.1]} 1... c6 {[%clk 0:02:59.7]} 2. Nc3 {[%clk 0:02:42.3]}
2... d5 {[%clk 0:03:00.6]} 3. Nf3 {[%clk 0:02:42]} 3... Bg4 {[%clk 0:03:00]} 4.
h3 {[%clk 0:02:40.4]} 4... Bxf3 {[%clk 0:03:00]} 5. Qxf3 {[%clk 0:02:41.3]} 5...
e6 {[%clk 0:03:00.4]} 6. Be2 {[%clk 0:02:36.7]} 6... Nd7 {[%clk 0:02:52.3]} 7.
d4 {[%clk 0:02:36]} 7... dxe4 {[%clk 0:02:34.1]} 8. Nxe4 {[%clk 0:02:33.9]} 8...
Ngf6 {[%clk 0:02:34.3]} 9. Nxf6+ {[%clk 0:02:30.5]} 9... Nxf6 {[%clk 0:02:31.7]}
10. c3 {[%clk 0:02:30.9]} 10... Qd5 {[%clk 0:02:31.6]} 11. Qg3 {[%clk
0:02:26.7]} 11... Ne4 {[%clk 0:02:13]} 12. Qc7 {[%clk 0:02:05.7]} 12... Qd7
{[%clk 0:02:10.3]} 13. Qxd7+ {[%clk 0:02:04.7]} 13... Kxd7 {[%clk 0:02:10.1]}
14. Bf3 {[%clk 0:02:05.3]} 14... Nf6 {[%clk 0:02:09.2]} 15. Bd2 {[%clk
0:01:59.6]} 15... a5 {[%clk 0:02:08]} 16. a4 {[%clk 0:01:56.6]} 16... Bd6 {[%clk
0:02:06.9]} 17. O-O-O {[%clk 0:01:53]} 17... Nd5 {[%clk 0:02:06.6]} 18. Kc2
{[%clk 0:01:51.6]} 18... h5 {[%clk 0:02:03.8]} 19. h4 {[%clk 0:01:49.3]} 19...
g6 {[%clk 0:02:03.8]} 20. c4 {[%clk 0:01:49.2]} 20... Nb4+ {[%clk 0:02:03.5]}
21. Bxb4 {[%clk 0:01:49.6]} 21... Bxb4 {[%clk 0:02:03.4]} 22. b3 {[%clk
0:01:49.9]} 22... Rad8 {[%clk 0:02:02.2]} 23. d5 {[%clk 0:01:50]} 23... cxd5
{[%clk 0:01:58.9]} 24. cxd5 {[%clk 0:01:50.9]} 24... e5 {[%clk 0:01:59.2]} 25.
Be2 {[%clk 0:01:44.6]} 25... Kd6 {[%clk 0:01:58.1]} 26. Bc4 {[%clk 0:01:40.1]}
26... e4 {[%clk 0:01:57.2]} 27. Bb5 {[%clk 0:01:27.2]} 27... Rc8+ {[%clk
0:01:55.3]} 28. Kb2 {[%clk 0:01:20.4]} 28... f5 {[%clk 0:01:53.6]} 29. g3 {[%clk
0:01:13.4]} 29... Rc3 {[%clk 0:01:51.8]} 30. Rc1 {[%clk 0:01:04.3]} 30... Rhc8
{[%clk 0:01:47.6]} 31. Bc4 {[%clk 0:00:54.7]} 31... Rf3 {[%clk 0:01:42.6]} 32.
Rc2 {[%clk 0:00:55.2]} 32... Bc5 {[%clk 0:01:41.7]} 33. Rf1 {[%clk 0:00:48.6]}
33... Re8 {[%clk 0:01:23.6]} 34. Re2 {[%clk 0:00:30.3]} 34... e3 {[%clk
0:01:16.6]} 35. Kc2 {[%clk 0:00:27.1]} 35... Re4 {[%clk 0:01:09.9]} 36. Kd1
{[%clk 0:00:18.9]} 36... exf2 {[%clk 0:01:04]} 37. Rxe4 {[%clk 0:00:15.5]} 37...
fxe4 {[%clk 0:01:04.9]} 38. Ke2 {[%clk 0:00:15.7]} 38... Rxg3 {[%clk 0:01:04.6]}
0-1

[Event "*** Titled Tuesday Blitz"]
[Site "Chess.com"]
[Date "2020.05.12"]
[Round "3"]
[White "DinaBelenkaya"]
[Black "manmanlai1"]
[Result "1-0"]
[WhiteElo "2117"]
[BlackElo "2322"]
[TimeControl "180+1"]
[EndTime "10:27:18 PDT"]
[Termination "DinaBelenkaya won by resignation"]

1. e4 {[%clk 0:03:00.9]} 1... c6 {[%clk 0:02:59.6]} 2. d4 {[%clk 0:02:55.2]}
2... d5 {[%clk 0:03:00.5]} 3. Nc3 {[%clk 0:02:51]} 3... dxe4 {[%clk 0:02:59.7]}
4. Nxe4 {[%clk 0:02:50.4]} 4... Nf6 {[%clk 0:03:00.2]} 5. Nxf6+ {[%clk 0:02:45]}
5... exf6 {[%clk 0:03:01.1]} 6. c3 {[%clk 0:02:42.4]} 6... Bd6 {[%clk
0:03:00.6]} 7. Bd3 {[%clk 0:02:42.5]} 7... O-O {[%clk 0:03:00.6]} 8. Ne2 {[%clk
0:02:43]} 8... Qc7 {[%clk 0:02:57]} 9. Qc2 {[%clk 0:02:39.7]} 9... h5 {[%clk
0:02:54.8]} 10. h3 {[%clk 0:02:35.9]} 10... Re8 {[%clk 0:02:53.3]} 11. Be3
{[%clk 0:02:35.8]} 11... Nd7 {[%clk 0:02:53.2]} 12. O-O {[%clk 0:02:22.9]} 12...
Nf8 {[%clk 0:02:51.7]} 13. Rae1 {[%clk 0:02:03.5]} 13... Be6 {[%clk 0:02:51]}
14. b3 {[%clk 0:01:56.9]} 14... Rad8 {[%clk 0:02:50.7]} 15. c4 {[%clk
0:01:45.7]} 15... Qc8 {[%clk 0:02:46.4]} 16. Nc3 {[%clk 0:01:20.4]} 16... Bb8
{[%clk 0:02:24.1]} 17. f4 {[%clk 0:01:18.9]} 17... Qc7 {[%clk 0:01:57]} 18. Kh1
{[%clk 0:01:08.9]} 18... Bc8 {[%clk 0:01:55.1]} 19. Bg1 {[%clk 0:01:08.6]} 19...
Ne6 {[%clk 0:01:52]} 20. Qe2 {[%clk 0:00:57.2]} 20... g6 {[%clk 0:01:28.2]} 21.
f5 {[%clk 0:00:54.9]} 21... Nxd4 {[%clk 0:01:22.5]} 22. Qxe8+ {[%clk 0:00:49.3]}
22... Rxe8 {[%clk 0:01:23.4]} 23. Rxe8+ {[%clk 0:00:49.9]} 23... Kg7 {[%clk
0:01:23.8]} 24. fxg6 {[%clk 0:00:31]} 24... Bxh3 {[%clk 0:01:17.2]} 25. Rxb8
{[%clk 0:00:26.7]} 25... Qxb8 {[%clk 0:01:06.3]} 26. Bxd4 {[%clk 0:00:21.2]}
26... Qg3 {[%clk 0:01:01.9]} 27. Bxf6+ {[%clk 0:00:20.7]} 27... Kf8 {[%clk
0:00:58.1]} 28. Be4 {[%clk 0:00:21.1]} 28... Be6 {[%clk 0:00:50.5]} 29. g7+
{[%clk 0:00:20.8]} 29... Kg8 {[%clk 0:00:50.2]} 30. Rd1 {[%clk 0:00:17]} 1-0